bitfinex/quotes_BTCUSD_20250602
["timestamp","ask_amount","ask_price","bid_price","bid_amount"]
[1748823948123,0.25571009,105620.0,105610.0,0.59884471]
[1748823948304,0.25571009,105620.0,105610.0,0.60831333]
[1748823948671,0.25571009,105620.0,105610.0,0.61778186]
[1748823948864,0.25571009,105620.0,105610.0,0.21778186]
[1748823949362,0.25571009,105620.0,105610.0,0.61778186]
[1748823950408,0.25571009,105620.0,105610.0,0.60831333]
[1748823950595,0.25571009,105620.0,105610.0,0.59884471]
[1748823951028,0.25571009,105620.0,105610.0,0.60831333]
[1748823952207,0.25571009,105620.0,105610.0,0.20831333]
[1748823952411,0.25571009,105620.0,105610.0,0.21778186]
[1748823952871,0.25571009,105620.0,105610.0,0.61778186]
[1748823953251,0.25571009,105620.0,105610.0,0.6272503]
[1748823954228,0.25571009,105620.0,105610.0,0.61778186]
[1748823954610,0.23677456,105620.0,105610.0,0.59884471]
[1748823955386,0.23677456,105620.0,105610.0,0.60831333]
[1748823955785,0.23677456,105620.0,105610.0,0.20831333]
[1748823956379,0.23677456,105620.0,105610.0,0.60831333]
[1748823957202,0.23677456,105620.0,105610.0,0.589376]
[1748823957401,0.23677456,105620.0,105610.0,0.5988448]
[1748823957548,0.23677456,105620.0,105610.0,0.60831351]
[1748823957761,0.23677456,105620.0,105610.0,0.4]
[1748823958557,0.23677456,105620.0,105610.0,0.589376]
[1748823959186,0.23677456,105620.0,105610.0,0.189376]
[1748823959401,0.00946862,105610.0,105600.0,0.80786552]
[1748823959596,0.00946853,105610.0,105600.0,0.90371982]
[1748823959801,0.00946853,105610.0,105600.0,1.30371982]
[1748823960427,0.00946826,105610.0,105600.0,1.30371982]
[1748823960775,0.01146826,105610.0,105600.0,1.30371982]
[1748823961088,0.02112885,105610.0,105600.0,1.30371982]
[1748823961689,0.03059684,105610.0,105600.0,1.33501982]
[1748823962534,0.05900207,105610.0,105600.0,1.29425094]
[1748823962747,0.23890981,105610.0,105600.0,0.57783273]
[1748823962987,0.259742,105610.0,105600.0,0.89417184]
[1748823963202,0.259742,105610.0,105600.0,0.90364126]
[1748823963422,0.25027365,105610.0,105600.0,0.59677184]
[1748823963659,0.23133659,105610.0,105600.0,0.2926]
[1748823963881,0.23133659,105610.0,105600.0,0.59]
[1748823964109,0.23133659,105610.0,105600.0,0.78886353]
[1748823964313,0.23133659,105610.0,105600.0,0.78886344]
[1748823964492,0.23133659,105610.0,105600.0,0.77939393]
[1748823964723,0.23133659,105610.0,105590.0,0.4]
[1748823964724,0.19886344,105600.0,105590.0,0.4]
[1748823964921,0.23106344,105600.0,105590.0,0.69736]
[1748823965129,0.24053286,105600.0,105590.0,0.69736]
[1748823965384,0.24053286,105600.0,105580.0,0.20837174]
[1748823965587,0.24249261,105590.0,105580.0,0.62999916]
[1748823965794,0.24249261,105590.0,105580.0,0.62052821]
[1748823966010,0.24249261,105590.0,105580.0,1.02052821]
[1748823966222,0.05308056,105590.0,105580.0,1.02999853]
[1748823966506,0.03788056,105590.0,105580.0,1.02999853]
[1748823966738,0.03788056,105590.0,105580.0,1.03199853]
[1748823967631,0.49639659,105610.0,105600.0,0.24980192]
[1748823967632,0.00966059,105610.0,105600.0,0.24980192]
[1748823967859,0.03791857,105620.0,105610.0,0.2329815]
[1748823968075,0.03791848,105620.0,105610.0,0.24244976]
[1748823968290,0.04738638,105620.0,105610.0,0.25764976]
[1748823968735,0.03791929,105620.0,105610.0,0.25764976]
[1748823969440,0.22727736,105620.0,105610.0,0.23871315]
[1748823969663,0.23027736,105620.0,105610.0,0.91514177]
[1748823970086,0.23227736,105620.0,105610.0,0.91514177]
[1748823970294,0.21334237,105620.0,105610.0,0.886736]
[1748823970481,0.21334237,105620.0,105610.0,0.89620471]
[1748823970702,0.21334237,105620.0,105610.0,0.90567333]
[1748823971779,0.22834237,105620.0,105610.0,0.90567333]
[1748823971952,0.23774635,105620.0,105610.0,0.89620471]
[1748823972154,0.21881064,105620.0,105610.0,0.886736]
[1748823972604,0.1988448,105610.0,105600.0,0.52838344]
[1748823972808,0.01893733,105610.0,105600.0,0.53785268]
[1748823973037,0.01893733,105610.0,105600.0,0.93785268]
[1748823973238,0.02840559,105610.0,105600.0,0.94732183]
[1748823974272,0.03787376,105610.0,105600.0,0.94732183]
[1748823974534,0.03887376,105610.0,105600.0,0.94732183]
[1748823974739,0.03887367,105610.0,105600.0,0.94732183]
[1748823975472,0.03887367,105610.0,105600.0,0.93785268]
[1748823975696,0.03040496,105610.0,105600.0,0.93785268]
[1748823975900,0.03987358,105610.0,105600.0,0.91512174]
[1748823976145,0.04934229,105610.0,105600.0,0.91512174]
[1748823976801,0.03987358,105610.0,105600.0,0.91512174]
[1748823977212,0.03987358,105610.0,105600.0,0.93072174]
[1748823977407,0.04934229,105610.0,105600.0,0.93072174]
[1748823977620,0.04934229,105610.0,105600.0,0.94672174]
[1748823977819,0.03040496,105610.0,105600.0,0.94672174]
[1748823978041,0.03987358,105610.0,105600.0,0.94672174]
[1748823979668,0.03040496,105610.0,105600.0,0.94672174]
[1748823981449,0.03040487,105610.0,105600.0,0.94672174]
[1748823981893,0.01146817,105610.0,105600.0,0.94672174]
[1748823982107,0.02093652,105610.0,105600.0,0.94672174]
[1748823982453,0.03040496,105610.0,105600.0,0.94672174]
[1748823983518,0.03987358,105610.0,105600.0,0.94672174]
[1748823983943,0.03987349,105610.0,105600.0,0.94672174]
[1748823984573,0.03040496,105610.0,105600.0,0.94672174]
[1748823985509,0.03987358,105610.0,105600.0,0.93112174]
[1748823985921,0.03987358,105610.0,105600.0,0.94722174]
[1748823986251,0.03040496,105610.0,105600.0,0.94722174]
[1748823986680,0.02093652,105610.0,105600.0,0.94722174]
[1748823986885,0.03040505,105610.0,105600.0,0.94722174]
[1748823987594,0.02093652,105610.0,105600.0,0.94722174]
[1748823987793,0.03040514,105610.0,105600.0,0.94722174]
[1748823988159,0.02093652,105610.0,105600.0,0.94722174]
[1748823988560,0.03040514,105610.0,105600.0,0.94722174]
[1748823988807,0.03040505,105610.0,105600.0,0.94722174]
[1748823989688,0.02093652,105610.0,105600.0,0.94722174]
[1748823990478,0.03040505,105610.0,105600.0,0.94722174]
[1748823990647,0.02093652,105610.0,105600.0,0.94722174]
[1748823991100,0.01146817,105610.0,105600.0,0.94722174]
[1748823991456,0.02093643,105610.0,105600.0,0.94722174]
[1748823993025,0.03040496,105610.0,105600.0,0.94722174]
[1748823993259,0.02093643,105610.0,105600.0,0.94722174]
[1748823994111,0.03040487,105610.0,105600.0,0.94722174]
[1748823994756,0.02093643,105610.0,105600.0,0.94722174]
[1748823994966,0.03040487,105610.0,105600.0,0.94722174]
[1748823996064,0.02093643,105610.0,105600.0,0.94722174]
[1748823996243,0.002,105610.0,105600.0,0.94722174]
[1748823996487,0.01146817,105610.0,105600.0,0.94722174]
[1748823996702,0.002,105610.0,105600.0,1.04307604]
[1748823998018,0.01146808,105610.0,105600.0,1.04307604]
[1748823998228,0.002,105610.0,105600.0,1.04307604]
[1748823998441,0.01146799,105610.0,105600.0,1.04307604]
[1748823999975,0.002,105610.0,105600.0,1.04307604]
[1748824001063,0.002,105610.0,105600.0,0.71365604]
[1748824001272,0.02093625,105610.0,105600.0,1.01073604]
[1748824001641,0.01146799,105610.0,105600.0,1.01073604]
[1748824001846,0.01146799,105610.0,105600.0,1.02593604]
[1748824002054,0.02093616,105610.0,105600.0,1.04163604]
[1748824002514,0.02093616,105610.0,105600.0,1.02593604]
[1748824003825,0.02093616,105610.0,105600.0,0.62593604]
[1748824004529,0.03040451,105610.0,105600.0,0.62593604]
[1748824004758,0.03040442,105610.0,105600.0,0.62593604]
[1748824005492,0.03987295,105610.0,105600.0,0.62593604]
[1748824005692,0.03040442,105610.0,105600.0,0.62593604]
[1748824006545,0.03040442,105610.0,105600.0,0.32885604]
[1748824006731,0.23314471,105610.0,105600.0,0.00946969]
[1748824006930,0.23314471,105610.0,105600.0,0.20833304]
[1748824008360,0.20833277,105600.0,105590.0,0.5009526]
[1748824008565,0.22363277,105600.0,105590.0,0.20835296]
[1748824008768,0.22363277,105600.0,105590.0,0.51482319]
[1748824009179,0.05317804,105600.0,105590.0,0.52429333]
[1748824009374,0.03787804,105600.0,105590.0,0.52429333]
[1748824009579,0.22727197,105600.0,105590.0,0.52529333]
[1748824010240,0.23674103,105600.0,105590.0,0.52529333]
[1748824010619,0.22727197,105600.0,105590.0,0.52529333]
[1748824011983,0.22727197,105600.0,105590.0,0.53476338]
[1748824012403,0.22727197,105600.0,105590.0,0.52529333]
[1748824013004,0.22727197,105600.0,105590.0,0.22829333]
[1748824013307,0.20833322,105600.0,105590.0,0.51578319]
[1748824013546,0.20833322,105600.0,105590.0,0.52525333]
[1748824013813,0.20833322,105600.0,105590.0,0.51578319]
[1748824014050,0.20833322,105600.0,105590.0,0.50631296]
[1748824014259,0.20833322,105600.0,105590.0,0.52525333]
[1748824015377,0.20761322,105600.0,105590.0,0.52525333]
[1748824017682,0.01821893,105600.0,105590.0,0.53472329]
[1748824017917,0.25126353,105620.0,105600.0,0.21780192]
[1748824018138,0.22724931,105610.0,105600.0,0.20833286]
[1748824018329,0.21778123,105610.0,105600.0,0.20833286]
[1748824019029,0.20831297,105610.0,105600.0,0.20833286]
[1748824019451,0.02840577,105610.0,105600.0,0.2178021]
[1748824019655,0.02940577,105610.0,105600.0,0.2178021]
[1748824019911,0.03040577,105610.0,105600.0,0.2178021]
[1748824020353,0.21978177,105610.0,105600.0,0.2178021]
[1748824023411,0.21978177,105610.0,105600.0,0.19886353]
[1748824023613,0.21031342,105610.0,105600.0,0.19886353]
[1748824023837,0.21031342,105610.0,105600.0,0.20833295]
[1748824024056,0.22651342,105610.0,105600.0,0.20833304]
[1748824024279,0.22651342,105610.0,105600.0,0.21780246]
[1748824025743,0.22651342,105610.0,105580.0,0.51312903]
[1748824025744,0.23086362,105600.0,105580.0,0.51312903]
[1748824025950,0.21782301,105590.0,105580.0,0.60106604]
[1748824026160,0.01894235,105580.0,105570.0,0.53270737]
[1748824026338,0.02841384,105580.0,105570.0,0.9132458]
[1748824026590,0.03788452,105580.0,105570.0,0.92271755]
[1748824027317,0.02841312,105580.0,105570.0,0.62587755]
[1748824027525,0.02841303,105580.0,105570.0,0.92271755]
[1748824028293,0.02941303,105580.0,105570.0,0.92671755]
[1748824028521,0.02941303,105580.0,105570.0,0.93071755]
[1748824028733,0.03888434,105580.0,105570.0,0.93071755]
[1748824030072,0.03888434,105580.0,105570.0,0.63811755]
[1748824030319,0.20937234,105580.0,105570.0,0.00861567]
[1748824030551,0.24157234,105580.0,105570.0,0.00861567]
[1748824031303,0.24157234,105580.0,105570.0,0.00461567]
[1748824031550,0.24057234,105580.0,105570.0,0.00061567]
[1748824031782,0.24057234,105580.0,105570.0,0.00261567]
[1748824032007,0.24057234,105580.0,105570.0,0.00561567]
[1748824032466,0.24057234,105580.0,105570.0,0.40561567]
[1748824032710,0.24057234,105580.0,105570.0,0.41508805]
[1748824032940,0.22162981,105580.0,105570.0,0.40561567]
[1748824034815,0.22162981,105580.0,105570.0,0.6045358]
[1748824035333,0.22162981,105580.0,105570.0,0.2045358]
[1748824035570,0.22162981,105580.0,105570.0,0.20392013]
[1748824035800,0.22162981,105580.0,105570.0,0.60392013]
[1748824036042,0.22162981,105580.0,105570.0,0.405]
[1748824036290,0.22162981,105580.0,105570.0,0.61339242]
[1748824036558,0.20592981,105580.0,105570.0,0.62286462]
[1748824037010,0.01894181,105580.0,105570.0,0.75828995]
[1748824037233,0.02841312,105580.0,105570.0,0.75828995]
[1748824038731,0.02841312,105580.0,105570.0,0.35828995]
[1748824039363,0.21784293,105580.0,105570.0,0.61339206]
[1748824039598,0.22731442,105580.0,105570.0,0.61339206]
[1748824040047,0.24321442,105580.0,105570.0,0.61339206]
[1748824040282,0.24067261,105580.0,105570.0,0.405]
[1748824040506,0.2312013,105580.0,105570.0,0.405]
[1748824041701,0.2312013,105580.0,105570.0,0.005]
[1748824046055,0.5712013,105580.0,105570.0,0.005]
[1748824047990,0.59034795,105580.0,105570.0,0.005]
[1748824051452,0.68330795,105580.0,105570.0,0.005]
[1748824052110,0.68330795,105580.0,105570.0,0.003]
[1748824052868,0.19892004,105570.0,105560.0,0.63788378]
[1748824053131,0.19892004,105570.0,105560.0,0.62889715]
[1748824053362,0.19892004,105570.0,105560.0,0.63837025]
[1748824054129,0.19892004,105570.0,105560.0,0.64037025]
[1748824054340,0.19892004,105570.0,105560.0,0.64337025]
[1748824054858,0.19892004,105570.0,105560.0,0.65284326]
[1748824055014,0.19892004,105570.0,105560.0,0.43495975]
[1748824055218,0.19892004,105570.0,105560.0,0.63389864]
[1748824055428,0.19892004,105570.0,105560.0,0.23389864]
[1748824055635,0.19892004,105570.0,105560.0,0.24337174]
[1748824055836,0.19892004,105570.0,105560.0,0.25284475]
[1748824056039,0.19892004,105570.0,105560.0,0.64337174]
[1748824056584,0.19892004,105570.0,105560.0,0.02548647]
[1748824056585,0.18944775,105570.0,105560.0,0.02548647]
[1748824057031,0.18944775,105570.0,105560.0,0.42548647]
[1748824057335,0.18944775,105570.0,105560.0,0.43495975]
[1748824057533,0.18944775,105570.0,105560.0,0.62442545]
[1748824057737,0.18944775,105570.0,105560.0,0.63389864]
[1748824058270,0.18944775,105570.0,105560.0,0.42548647]
[1748824059706,0.18944775,105570.0,105560.0,0.72208647]
[1748824059911,0.18944775,105570.0,105560.0,0.32208647]
[1748824060460,0.18944775,105570.0,105560.0,0.92102545]
[1748824063786,0.18944775,105570.0,105560.0,0.93049864]
[1748824064305,0.18944775,105570.0,105560.0,0.42548647]
[1748824064722,0.18944775,105570.0,105560.0,0.43495975]
[1748824065129,0.67383646,105580.0,105560.0,0.65977138]
[1748824065372,0.22733583,105570.0,105560.0,0.98210421]
[1748824065643,0.23680821,105570.0,105560.0,0.98210421]
[1748824065875,0.22733646,105570.0,105560.0,0.98210421]
[1748824066109,0.22733646,105570.0,105560.0,0.98010421]
[1748824066546,0.02841633,105570.0,105560.0,0.99157686]
[1748824066761,0.03788862,105570.0,105560.0,0.99157686]
[1748824067015,0.03788862,105570.0,105560.0,0.98957686]
[1748824067235,0.03788862,105570.0,105560.0,0.99157686]
[1748824067677,0.02841633,105570.0,105560.0,0.99157686]
[1748824067887,0.03788871,105570.0,105560.0,0.99157686]
[1748824068102,0.03788871,105570.0,105560.0,0.98957686]
[1748824069420,0.02841633,105570.0,105560.0,0.98657686]
[1748824069643,0.01894413,105570.0,105560.0,0.98757686]
[1748824069852,0.02841633,105570.0,105560.0,0.98757686]
[1748824070311,0.03788862,105570.0,105560.0,0.98757686]
[1748824070816,0.65100759,105580.0,105570.0,0.01894449]
[1748824071040,0.63186094,105580.0,105570.0,0.23062013]
[1748824071440,0.62238981,105580.0,105570.0,0.23062013]
[1748824072351,0.62238981,105580.0,105570.0,0.19892013]
[1748824072602,0.62338981,105580.0,105570.0,0.19892013]
[1748824072797,0.62438981,105580.0,105570.0,0.22419242]
[1748824073024,0.62438981,105580.0,105570.0,0.24936462]
[1748824074198,0.32724927,105580.0,105570.0,0.2683083]
[1748824074414,0.34619162,105580.0,105570.0,0.2683083]
[1748824074636,0.34619153,105580.0,105570.0,0.6683083]
[1748824075294,0.35566284,105580.0,105570.0,0.6683083]
[1748824075511,0.33672031,105580.0,105570.0,0.6683083]
[1748824075745,0.34619162,105580.0,105570.0,0.6683083]
[1748824076008,0.34619153,105580.0,105570.0,0.6683083]
[1748824076234,0.3367204,105580.0,105570.0,0.7641626]
[1748824076699,0.34619171,105580.0,105570.0,0.7641626]
[1748824076914,0.35566311,105580.0,105570.0,0.7641626]
[1748824077104,0.3651346,105580.0,105570.0,0.7641626]
[1748824077347,0.55456441,105580.0,105570.0,0.75469085]
[1748824077572,0.55456441,105580.0,105570.0,0.36416269]
[1748824077996,0.35566311,105580.0,105570.0,0.36416269]
[1748824078206,0.35566311,105580.0,105570.0,0.76416269]
[1748824078430,0.35566311,105580.0,105570.0,0.76416206]
[1748824078871,0.35566374,105580.0,105570.0,0.75469031]
[1748824079005,0.54509355,105580.0,105570.0,0.74521856]
[1748824079233,0.53562242,105580.0,105570.0,0.94576435]
[1748824079428,0.53562242,105580.0,105570.0,0.93006435]
[1748824079634,0.53562242,105580.0,105570.0,0.93953637]
[1748824080522,0.51667971,105580.0,105570.0,0.4]
[1748824080739,0.51667971,105580.0,105570.0,0.88580775]
[1748824081143,0.51495971,105580.0,105570.0,0.88580775]
[1748824081574,0.51495971,105580.0,105570.0,0.18944775]
[1748824081771,0.1991813,105580.0,105570.0,0.50475224]
[1748824081983,0.51495971,105580.0,105570.0,0.50475224]
[1748824083129,0.50548822,105580.0,105570.0,0.29636]
[1748824083535,0.0094722,105570.0,105560.0,0.97224313]
[1748824083755,0.32525061,105570.0,105560.0,1.36445743]
[1748824083966,0.32525052,105570.0,105560.0,1.36445743]
[1748824084867,0.32525052,105570.0,105560.0,1.36645743]
[1748824085267,0.32525034,105570.0,105560.0,1.36645743]
[1748824085882,0.33472218,105570.0,105560.0,1.36745743]
[1748824086124,0.34419429,105570.0,105560.0,1.36745743]
[1748824086345,0.35366649,105570.0,105560.0,1.35798496]
[1748824086581,0.35366604,105570.0,105560.0,1.35798496]
[1748824087301,0.35366604,105570.0,105560.0,1.06162496]
[1748824087558,0.36313824,105570.0,105560.0,1.35794496]
[1748824087981,0.36313824,105570.0,105560.0,1.35864496]
[1748824088413,0.36313824,105570.0,105560.0,1.32614496]
[1748824088759,0.36313824,105570.0,105560.0,1.34254496]
[1748824088997,0.36313824,105570.0,105560.0,1.35834496]
[1748824089811,0.36313878,105570.0,105560.0,1.35834496]
[1748824091385,0.02841624,105570.0,105560.0,1.3330724]
[1748824091629,0.34419465,105570.0,105560.0,1.35884505]
[1748824092034,0.54311478,105570.0,105560.0,1.3330724]
[1748824092246,0.54311478,105570.0,105560.0,1.34254514]
[1748824092472,0.35366703,105570.0,105560.0,1.05941779]
[1748824093304,0.34419465,105570.0,105560.0,1.05941779]
[1748824094364,0.35366694,105570.0,105560.0,1.04293779]
[1748824095733,0.34419465,105570.0,105560.0,1.04293779]
[1748824095934,0.34419465,105570.0,105560.0,1.07483779]
[1748824096348,0.35366703,105570.0,105560.0,1.07483779]
[1748824097399,0.35366703,105570.0,105560.0,1.03346514]
[1748824097624,0.34419465,105570.0,105560.0,1.04293779]
[1748824098404,0.34419465,105570.0,105560.0,1.05843779]
[1748824098607,0.35366694,105570.0,105560.0,1.05843779]
[1748824099654,0.36313932,105570.0,105560.0,1.04293779]
[1748824099860,0.55258707,105570.0,105560.0,1.04293779]
[1748824101131,0.55267713,105570.0,105560.0,1.04293779]
[1748824101346,0.36322938,105570.0,105560.0,1.03346514]
[1748824101567,0.34428471,105570.0,105560.0,1.04293779]
[1748824101800,0.353757,105570.0,105560.0,1.04293779]
[1748824102231,0.34428471,105570.0,105560.0,1.05923779]
[1748824102443,0.34428471,105570.0,105560.0,1.07583779]
[1748824104237,0.33481251,105570.0,105560.0,1.07583779]
[1748824105067,0.34428409,105570.0,105560.0,1.07583779]
[1748824105254,0.344284,105570.0,105560.0,1.07583779]
[1748824105520,0.33481198,105570.0,105560.0,1.07583779]
[1748824105725,0.344284,105570.0,105560.0,1.07583779]
[1748824106172,0.20441187,105590.0,105570.0,0.23919152]
[1748824106395,0.548355,105590.0,105580.0,0.19890112]
[1748824106836,0.548355,105590.0,105580.0,0.89502112]
[1748824107248,0.208355,105590.0,105580.0,0.89502112]
[1748824107672,0.52511228,105590.0,105580.0,0.89502112]
[1748824108130,0.52411228,105590.0,105580.0,0.89502112]
[1748824108344,0.51664196,105590.0,105580.0,0.89502112]
[1748824108551,0.51864196,105590.0,105580.0,0.89502112]
[1748824109765,0.52811228,105590.0,105580.0,0.90449234]
[1748824110599,0.52811228,105590.0,105580.0,0.89502112]
[1748824111017,0.52811228,105590.0,105580.0,0.90449216]
[1748824111229,0.33869765,105590.0,105580.0,0.91396302]
[1748824111437,0.34816824,105590.0,105580.0,0.93499216]
[1748824111652,0.32922724,105590.0,105580.0,1.04031732]
[1748824112066,0.33869738,105590.0,105580.0,1.04031732]
[1748824112269,0.32922724,105590.0,105580.0,1.04031732]
[1748824112444,0.33869729,105590.0,105580.0,1.04031732]
[1748824113506,0.34816761,105590.0,105580.0,1.04031732]
[1748824113711,0.34416761,105590.0,105580.0,1.04031732]
[1748824113914,0.34416752,105590.0,105580.0,1.04031732]
[1748824114133,0.33569729,105590.0,105580.0,1.04031732]
[1748824114762,0.32622724,105590.0,105580.0,1.04031732]
[1748824114974,0.33569738,105590.0,105580.0,1.04031732]
[1748824115187,0.32622724,105590.0,105580.0,1.04031732]
[1748824115605,0.33569738,105590.0,105580.0,1.04031732]
[1748824116027,0.3451677,105590.0,105580.0,1.33291732]
[1748824117151,0.53457957,105590.0,105580.0,0.97788411]
[1748824117360,0.55660988,105590.0,105580.0,0.58856]
[1748824118519,0.55660988,105590.0,105580.0,0.78746121]
[1748824119139,0.54713956,105590.0,105580.0,0.58856]
[1748824119354,0.54713956,105590.0,105580.0,0.59803149]
[1748824119571,0.53123956,105590.0,105580.0,0.80640365]
[1748824119783,0.51563956,105590.0,105580.0,0.80640365]
[1748824120209,0.51563956,105590.0,105580.0,0.79693252]
[1748824122024,0.51563956,105590.0,105580.0,0.55517451]
[1748824122025,0.33569783,105590.0,105580.0,0.55517451]
[1748824122238,0.34516842,105590.0,105580.0,0.55517451]
[1748824122453,0.34516842,105590.0,105580.0,0.94570365]
[1748824122680,0.53458029,105590.0,105580.0,0.94570365]
[1748824123596,0.53458029,105590.0,105580.0,0.92960365]
[1748824124430,0.53458029,105590.0,105580.0,0.93907469]
[1748824124638,0.53458029,105590.0,105580.0,0.63364365]
[1748824124849,0.53458029,105590.0,105580.0,0.91372383]
[1748824125076,0.53458029,105590.0,105580.0,0.92319496]
[1748824125871,0.53458029,105590.0,105580.0,0.932666]
[1748824126897,0.54415685,105590.0,105580.0,0.932666]
[1748824127569,0.54415685,105590.0,105580.0,0.92319496]
[1748824128771,0.54415685,105590.0,105580.0,0.932666]
[1748824128997,0.54415685,105590.0,105580.0,0.94786546]
[1748824129810,0.54415685,105590.0,105580.0,0.96426546]
[1748824130236,0.54415685,105590.0,105580.0,0.95479451]
[1748824130668,0.54415685,105590.0,105580.0,0.93839451]
[1748824130917,0.54415685,105590.0,105580.0,0.92319451]
[1748824131365,0.22839957,105590.0,105580.0,0.92319451]
[1748824131576,0.54415685,105590.0,105580.0,0.92319451]
[1748824132674,0.35474498,105590.0,105580.0,0.96476546]
[1748824132934,0.54415685,105590.0,105580.0,0.96476546]
[1748824133371,0.54415804,105590.0,105580.0,0.96476546]
[1748824133586,0.54415804,105590.0,105580.0,0.95529451]
[1748824133814,0.54415804,105590.0,105580.0,0.91372347]
[1748824134036,0.5346879,105590.0,105580.0,0.90413234]
[1748824134251,0.5346879,105590.0,105580.0,0.91360347]
[1748824136307,0.5346879,105590.0,105580.0,0.89466112]
[1748824136758,0.5346879,105590.0,105580.0,0.90413234]
[1748824136974,0.52511134,105590.0,105580.0,0.90413234]
[1748824138259,0.52511134,105590.0,105580.0,0.49466112]
[1748824138480,0.52511134,105590.0,105570.0,0.52211933]
[1748824138481,0.20837225,105580.0,105570.0,0.58832]
[1748824138706,0.20837225,105580.0,105570.0,0.78724013]
[1748824138707,0.84561815,105580.0,105570.0,0.78724013]
[1748824138928,0.84561815,105580.0,105570.0,0.79671242]
[1748824139354,0.84561815,105580.0,105570.0,0.58832]
[1748824139355,0.86151815,105580.0,105570.0,0.58832]
[1748824139570,0.88995715,105580.0,105570.0,0.58832]
[1748824139792,0.87405715,105580.0,105570.0,0.29672]
[1748824140521,0.24254021,105580.0,105570.0,0.48616775]
[1748824140738,0.85885715,105580.0,105570.0,0.49764004]
[1748824141401,0.53370562,105580.0,105570.0,0.49764004]
[1748824141616,0.53370562,105580.0,105570.0,0.48816775]
[1748824142048,0.55030562,105580.0,105570.0,0.29868]
[1748824142261,0.55030562,105580.0,105570.0,0.69868]
[1748824142684,0.55030562,105580.0,105570.0,0.29868]
[1748824142685,0.56600562,105580.0,105570.0,0.29868]
[1748824143122,0.56600562,105580.0,105570.0,0.69868]
[1748824144637,0.55264833,105580.0,105570.0,0.89760013]
[1748824145466,0.55264833,105580.0,105570.0,0.69868]
[1748824148254,0.56814833,105580.0,105570.0,0.69868]
[1748824148685,0.56814833,105580.0,105570.0,0.29868]
[1748824148891,0.58474833,105580.0,105570.0,0.003]
[1748824149133,1.72133095,105580.0,105570.0,0.003]
[1748824149333,1.21723442,105570.0,105560.0,0.02048647]
[1748824149554,1.33000332,105570.0,105560.0,0.02048647]
[1748824150378,5.19492632,105570.0,105560.0,0.02048647]
[1748824151234,4.89932632,105570.0,105560.0,0.02048647]
[1748824151433,5.19496632,105570.0,105560.0,0.02048647]
[1748824151858,1.33400332,105570.0,105560.0,0.02148647]
[1748824152061,1.72184332,105570.0,105560.0,0.02148647]
[1748824152689,1.72684332,105570.0,105560.0,0.02248647]
[1748824152907,1.81935454,105570.0,105560.0,0.02248647]
[1748824153092,5.29616632,105570.0,105560.0,0.02248647]
[1748824154211,1.72684332,105570.0,105560.0,0.02248647]
[1748824158872,1.0951697,105570.0,105560.0,0.02248647]
[1748824159085,1.33538902,105570.0,105560.0,0.02248647]
[1748824159321,1.59888902,105570.0,105560.0,0.02248647]
[1748824159995,1.62733402,105570.0,105560.0,0.02248647]
[1748824161047,1.33173402,105570.0,105560.0,0.02248647]
[1748824161251,1.62729402,105570.0,105560.0,0.02248647]
[1748824161900,1.64339402,105570.0,105560.0,0.02248647]
[1748824162807,1.67451013,105570.0,105560.0,0.02248647]
[1748824163021,1.68981013,105570.0,105560.0,0.02248647]
[1748824163211,1.65869402,105570.0,105560.0,0.02248647]
[1748824163696,1.75454832,105570.0,105560.0,0.02248647]
[1748824166400,1.75450832,105570.0,105560.0,0.02248647]
[1748824166597,1.64335402,105570.0,105560.0,0.02248647]
[1748824166803,1.0116804,105570.0,105560.0,0.02248647]
[1748824167011,1.65865402,105570.0,105560.0,0.02248647]
[1748824170314,1.64335402,105570.0,105560.0,0.02248647]
[1748824172967,1.65885402,105570.0,105560.0,0.02248647]
[1748824175099,1.62721402,105570.0,105560.0,0.02248647]
[1748824176941,0.9955404,105570.0,105560.0,0.02248647]
[1748824177158,1.62721402,105570.0,105560.0,0.02248647]
[1748824180578,1.63706823,105570.0,105560.0,0.02248647]
[1748824180716,1.62721402,105570.0,105560.0,0.02248647]
[1748824180920,1.33173402,105570.0,105560.0,0.02248647]
[1748824181129,1.62717402,105570.0,105560.0,0.02248647]
[1748824181939,0.9955004,105570.0,105560.0,0.02248647]
[1748824182140,1.62717402,105570.0,105560.0,0.02248647]
[1748824182362,0.68551919,105570.0,105560.0,0.27197156]
[1748824182562,0.8901432,105570.0,105560.0,0.28084923]
[1748824182767,0.8901432,105570.0,105560.0,0.28084928]
[1748824182953,0.71016738,105570.0,105560.0,0.69032187]
[1748824183156,0.71963896,105570.0,105560.0,0.69032187]
[1748824183362,0.37963896,105570.0,105560.0,0.68084922]
[1748824183565,0.56908671,105570.0,105560.0,0.68084422]
[1748824183980,0.56508671,105570.0,105560.0,0.6798442]
[1748824184179,0.56508671,105570.0,105560.0,0.67097156]
[1748824184434,0.56508671,105570.0,105560.0,0.6798442]
[1748824184435,0.56808671,105570.0,105560.0,0.6798442]
[1748824184648,0.3258177,105570.0,105560.0,0.46195911]
[1748824184887,1.32379132,105570.0,105560.0,0.02048647]
[1748824185125,1.36677817,105570.0,105560.0,0.02048647]
[1748824185332,1.46563247,105570.0,105560.0,0.02048647]
[1748824185975,1.37312125,105570.0,105560.0,0.02048647]
[1748824193162,1.4385397,105570.0,105560.0,0.02048647]
[1748824195565,1.7371397,105570.0,105560.0,0.02048647]
[1748824195799,0.19899544,105530.0,105520.0,0.015]
[1748824196048,0.19899544,105530.0,105510.0,0.036]
[1748824196049,0.20849081,105520.0,105510.0,0.051]
[1748824196273,0.52432762,105520.0,105510.0,0.45985997]
[1748824196491,0.52432762,105520.0,105510.0,0.45990858]
[1748824196716,0.5148512,105520.0,105510.0,0.45990858]
[1748824197396,0.53380397,105520.0,105510.0,0.45990863]
[1748824197850,0.53380397,105520.0,105510.0,0.45104861]
[1748824198070,0.53380397,105520.0,105510.0,0.45990744]
[1748824198958,0.53480397,105520.0,105510.0,0.45104861]
[1748824199186,0.53480397,105520.0,105510.0,0.05104861]
[1748824199438,0.53480397,105520.0,105510.0,0.05989738]
[1748824199667,0.53480397,105520.0,105510.0,0.04489738]
[1748824199873,0.53480397,105520.0,105510.0,0.03604861]
[1748824200097,0.53480397,105520.0,105510.0,0.05224861]
[1748824200599,0.53480397,105520.0,105510.0,0.2418041]
[1748824200812,0.53480379,105520.0,105510.0,0.27023687]
[1748824201061,0.55375699,105520.0,105510.0,0.26075937]
[1748824201272,0.54428057,105520.0,105510.0,0.26075937]
[1748824201540,0.54428057,105520.0,105510.0,0.27023687]
[1748824201976,0.53480388,105520.0,105510.0,0.2418041]
[1748824202201,0.53480388,105520.0,105510.0,0.25128187]
[1748824202676,0.53480388,105520.0,105510.0,0.26075955]
[1748824203351,0.21896707,105520.0,105510.0,0.66075955]
[1748824203563,0.53480388,105520.0,105510.0,0.67023714]
[1748824203777,0.5253271,105520.0,105510.0,0.66075955]
[1748824204219,0.5253271,105520.0,105510.0,0.67023714]
[1748824204427,0.5253271,105520.0,105510.0,0.67971464]
[1748824204638,0.21896707,105520.0,105510.0,0.68919187]
[1748824204845,0.03890606,105520.0,105510.0,0.78504617]
[1748824205027,0.04838221,105520.0,105510.0,0.78504554]